bitfinex/quotes_ETHUSD_20241216
["timestamp","ask_amount","ask_price","bid_price","bid_amount"]
[1734309281825,0.649626,3988.8,3987.5,2.9572484]
[1734309282320,0.649626,3988.8,3987.2,2.50796]
[1734309282517,0.649626,3988.8,3986.9,3.28611]
[1734309282821,12.3695749,3990.0,3987.6,2.50777]
[1734309282993,12.3695749,3990.0,3987.5,5.4650284]
[1734309283424,12.3695749,3990.0,3986.9,0.7779]
[1734309283780,12.3695749,3990.0,3987.7,2.50767]
[1734309284089,12.3695749,3990.0,3987.1,2.50808]
[1734309284315,12.3695749,3990.0,3987.9,0.12757497]
[1734309284616,12.3695749,3990.0,3986.9,0.7779]
[1734309284617,0.7735,3989.5,3987.1,2.50803]
[1734309284824,0.7735,3989.5,3986.9,0.7779]
[1734309284990,0.7735,3989.5,3987.6,0.12540801]
[1734309285741,0.7735,3989.5,3988.4,2.50722]
[1734309286088,0.7735,3989.5,3987.8,2.50764]
[1734309286385,0.7735,3989.5,3988.8,2.50699]
[1734309286611,0.7735,3989.5,3988.0,2.9572484]
[1734309286786,13.1980749,3990.0,3988.1,2.50745]
[1734309287221,13.1980749,3990.0,3989.5,2.50654]
[1734309287522,13.1980749,3990.0,3988.2,2.50739]
[1734309287523,13.1980749,3990.0,3988.9,2.5069]
[1734309287724,13.1980749,3990.0,3988.8,2.50696]
[1734309287879,13.1980749,3990.0,3988.5,2.50716]
[1734309287880,13.1980749,3990.0,3989.6,2.50647]
[1734309288077,12.3695749,3990.0,3989.8,2.50633]
[1734309288282,12.3695749,3990.0,3989.5,2.50655]
[1734309288521,12.3695749,3990.0,3989.2,2.50676]
[1734309288903,12.3695749,3990.0,3989.4,0.12783414]
[1734309289291,12.3695749,3990.0,3988.8,2.50697]
[1734309289493,11.1164449,3990.0,3989.8,2.50634]
[1734309290033,11.1164449,3990.0,3989.4,2.50659]
[1734309290183,11.1164449,3990.0,3989.1,0.12214706]
[1734309290184,11.1164449,3990.0,3989.2,2.50671]
[1734309290386,11.1164449,3990.0,3989.1,0.12214706]
[1734309290687,11.1164449,3990.0,3989.3,2.50667]
[1734309290909,11.1164449,3990.0,3989.4,2.5066]
[1734309291111,11.1164449,3990.0,3989.4,2.50663]
[1734309291317,11.1164449,3990.0,3989.1,0.12214706]
[1734309291524,11.1164449,3990.0,3989.1,2.62895706]
[1734309291695,11.1164449,3990.0,3989.1,0.12214706]
[1734309292037,11.1164449,3990.0,3989.6,2.50649]
[1734309292187,0.02399289,3989.9,3989.1,0.12214706]
[1734309292385,0.02399289,3989.9,3989.7,2.50643]
[1734309292931,11.1164449,3990.0,3989.9,2.50632]
[1734309293144,11.13937829,3990.0,3989.9,2.50632]
[1734309293303,11.13937829,3990.0,3989.7,8.371228]
[1734309293816,11.13937829,3990.0,3989.8,0.122508]
[1734309294214,0.8314,3989.9,3989.1,8.371228]
[1734309294527,0.85471744,3989.9,3989.6,0.12550089]
[1734309294735,0.85471744,3989.9,3989.1,8.371228]
[1734309295045,0.85471744,3989.9,3989.2,2.6330899]
[1734309295213,0.85471744,3989.9,3989.3,2.50669]
[1734309295400,0.85471744,3989.9,3989.2,0.1263399]
[1734309297313,0.85471744,3989.9,3988.7,8.371228]
[1734309297314,0.85471744,3989.9,3988.8,2.50698]
[1734309297529,0.85471744,3989.9,3989.1,0.12297134]
[1734309297530,0.8314,3989.9,3989.1,0.12297134]
[1734309298120,0.8314,3989.9,3989.2,10.877948]
[1734309298353,11.1164449,3990.0,3989.2,10.877948]
[1734309298557,11.1164449,3990.0,3989.2,8.371228]
[1734309299069,11.1164449,3990.0,3987.8,1.02116627]
[1734309299070,0.8284,3989.9,3988.3,8.371228]
[1734309299543,2.50641,3989.8,3988.3,8.371228]
[1734309299744,0.8284,3989.9,3987.9,8.49402719]
[1734309299921,0.8284,3989.3,3987.5,8.371228]
[1734309300127,0.8284,3989.3,3987.5,10.879008]
[1734309300306,0.8284,3989.3,3987.8,0.12249861]
[1734309300507,0.8284,3989.3,3988.0,2.5075]
[1734309300702,0.8284,3989.3,3988.2,2.50738]
[1734309300942,0.8284,3989.3,3988.7,8.371228]
[1734309301360,11.1164449,3990.0,3988.7,8.371228]
[1734309301361,11.8944449,3990.0,3988.7,8.371228]
[1734309301561,11.8944449,3990.0,3989.7,2.50641]
[1734309301781,11.8944449,3990.0,3989.1,2.50678]
[1734309301782,11.1164449,3990.0,3989.2,8.371228]
[1734309302061,11.1164449,3990.0,3989.5,2.50651]
[1734309302349,11.1164449,3990.0,3989.5,2.50653]
[1734309302580,11.1164449,3990.0,3988.3,1.02116627]
[1734309302581,0.7783,3989.9,3988.3,1.02116627]
[1734309302704,0.7783,3989.9,3988.5,2.62952579]
[1734309303114,0.7783,3989.9,3988.8,2.507]
[1734309303368,0.7783,3989.9,3988.5,2.62948579]
[1734309303523,11.1164449,3990.0,3987.8,8.371228]
[1734309303524,2.50649,3989.7,3987.8,8.371228]
[1734309303722,0.7783,3989.4,3987.8,8.371228]
[1734309303907,0.7783,3989.4,3987.5,0.12271159]
[1734309304111,0.7783,3989.4,3988.1,2.50744]
[1734309304361,0.7783,3989.4,3987.8,8.371228]
[1734309304724,0.7783,3989.4,3986.8,8.371228]
[1734309304922,2.9572484,3989.6,3986.8,8.371228]
[1734309304923,0.7783,3988.6,3987.1,0.12641761]
[1734309305120,0.7783,3988.6,3986.7,8.371228]
[1734309305341,0.7783,3988.5,3986.7,2.50832]
[1734309305557,0.7783,3988.5,3986.7,10.879548]
[1734309305737,0.7783,3988.5,3986.8,0.12297452]
[1734309306031,0.7783,3988.5,3987.2,8.371228]
[1734309306363,0.7783,3988.0,3986.9,8.371228]
[1734309306664,0.7783,3988.0,3986.8,8.371228]
[1734309306862,0.7783,3988.0,3987.5,2.5078]
[1734309307062,0.7783,3988.0,3987.1,8.371228]
[1734309307274,0.7783,3988.0,3986.5,9.3257926]
[1734309307562,0.7783,3988.0,3986.7,8.371228]
[1734309307725,0.7783,3988.0,3986.8,8.371228]
[1734309308088,0.7783,3988.0,3986.5,0.1245646]
[1734309308280,2.50754,3988.0,3986.5,0.1245646]
[1734309308484,2.9572484,3988.9,3986.1,8.371228]
[1734309308485,0.7783,3987.9,3986.1,8.371228]
[1734309308663,0.7783,3987.9,3985.9,2.50881]
[1734309308978,0.7783,3987.9,3986.2,2.50864]
[1734309309143,0.7783,3987.9,3986.2,10.879868]
[1734309309473,0.7783,3987.9,3985.5,3.33905]
[1734309309474,0.78,3987.8,3985.7,8.371228]
[1734309309761,5.4641984,3988.9,3985.1,8.371228]
[1734309309762,0.78,3986.8,3985.1,8.371228]
[1734309309922,0.78,3987.3,3984.9,8.371228]
[1734309310263,0.78,3987.3,3984.4,1.02116627]
[1734309310264,0.78,3986.9,3985.0,8.371228]
[1734309310457,0.78,3986.8,3984.9,10.880668]
[1734309310761,2.9572484,3987.1,3984.7,8.371228]
[1734309310933,2.9572484,3987.1,3984.7,0.12489376]
[1734309311139,2.9572484,3987.1,3984.3,8.371228]
[1734309311340,2.5087,3986.2,3984.1,2.50994]
[1734309311581,2.50791,3987.4,3984.2,0.1242169]
[1734309311582,2.9572484,3986.5,3984.2,0.1242169]
[1734309311988,2.75791,3987.4,3983.0,8.371228]
[1734309311989,2.5089,3985.8,3983.0,8.371228]
[1734309312152,2.9572484,3984.7,3982.8,8.371228]
[1734309312352,2.9572484,3984.7,3982.0,2.30400809]
[1734309312353,2.9572484,3984.7,3981.9,1.02116627]
[1734309312643,2.50982,3984.4,3982.2,8.371228]
[1734309312855,2.5099,3984.3,3982.2,8.371228]
[1734309313141,2.5099,3984.3,3982.0,0.12651071]
[1734309313142,2.9572484,3984.1,3982.0,8.49773871]
[1734309313352,2.50983,3984.4,3981.2,8.371228]
[1734309313490,0.7988,3984.3,3981.6,2.51152]
[1734309313686,0.7988,3984.2,3981.8,2.51138]
[1734309313943,0.7988,3984.2,3982.0,8.371228]
[1734309313944,0.7988,3984.1,3982.0,8.371228]
[1734309314113,0.7988,3984.1,3981.0,4.36454627]
[1734309314114,0.7988,3984.1,3982.2,10.882348]
[1734309314493,0.7988,3984.1,3982.3,2.51108]
[1734309314693,2.9572484,3984.1,3981.7,8.371228]
[1734309314990,0.7988,3983.7,3982.2,8.371228]
[1734309315744,0.7988,3983.7,3982.5,10.882168]
[1734309315944,0.7988,3984.6,3983.1,8.371228]
[1734309316152,1.08753869,3984.7,3983.8,8.371228]
[1734309316291,0.7988,3985.1,3984.5,2.5097]
[1734309316486,0.7988,3987.7,3984.6,8.371228]
[1734309316705,0.7988,3987.5,3984.9,0.8315]
[1734309316910,0.83924579,3987.5,3986.4,2.50849]
[1734309317128,0.83924579,3987.5,3985.0,3.01235508]
[1734309317356,0.83924579,3987.5,3985.1,2.50934]
[1734309317502,0.83924579,3987.5,3985.1,0.37470877]
[1734309317706,0.83924579,3987.5,3986.9,2.50821]
[1734309317947,0.83924579,3987.5,3985.2,2.81803839]
[1734309318156,0.83924579,3987.5,3985.7,2.50894]
[1734309318362,0.83924579,3987.5,3985.6,2.50899]
[1734309318520,0.83924579,3987.5,3985.9,2.5088]
[1734309318708,0.83924579,3987.5,3985.9,8.371228]
[1734309318905,0.83924579,3987.5,3986.8,2.50825]
[1734309319229,0.83924579,3987.5,3986.5,2.50845]
[1734309319437,0.83924579,3987.5,3986.6,2.50836]
[1734309320020,0.83924579,3987.5,3986.3,2.50853]
[1734309320369,0.83924579,3987.5,3985.9,8.371228]
[1734309320577,0.83924579,3987.5,3985.0,0.37470877]
[1734309320578,0.83924579,3987.5,3985.7,0.12422343]
[1734309320877,1.08997495,3987.4,3985.8,8.371228]
[1734309321085,1.08997495,3987.4,3985.9,8.371228]
[1734309321221,1.08997495,3987.4,3986.7,2.50832]
[1734309321424,1.08997495,3987.4,3986.3,2.50854]
[1734309321687,1.08997495,3987.4,3986.0,2.50878]
[1734309321823,1.08997495,3987.4,3987.2,2.50799]
[1734309322236,0.8014,3988.1,3987.2,2.50799]
[1734309322781,0.8014,3988.1,3987.0,8.371228]
[1734309322989,0.8014,3988.1,3986.8,2.50821]
[1734309323308,0.8014,3988.1,3987.7,2.5077]
[1734309323973,0.8014,3988.1,3985.3,1.55026327]
[1734309323974,12.84,3988.6,3988.4,2.50723]
[1734309324195,13.6414,3989.2,3989.0,2.50686]
[1734309324497,12.84,3989.2,3989.0,10.878088]
[1734309324626,0.1654235,3990.5,3989.1,2.50683]
[1734309324627,12.84,3989.3,3989.1,2.50683]
[1734309324946,12.84,3989.9,3989.7,2.50643]
[1734309325143,0.8014,3990.3,3989.7,2.50643]
[1734309326042,0.8014,3990.3,3989.4,10.877808]
[1734309326252,0.8014,3990.3,3988.9,8.371228]
[1734309326422,0.8014,3990.3,3988.8,2.50701]
[1734309326629,0.8014,3990.3,3988.3,8.371228]
[1734309326924,0.8014,3990.3,3986.5,2.03458942]
[1734309326925,2.50639,3989.8,3987.8,2.50764]
[1734309327151,3.1226719,3990.5,3987.9,2.50754]
[1734309327152,0.8014,3989.7,3987.9,2.50754]
[1734309327351,3.30786,3989.7,3987.6,2.50777]
[1734309327570,0.8214,3989.5,3987.7,0.12507676]
[1734309327777,13.6227249,3990.0,3987.6,0.12600428]
[1734309327778,0.8214,3989.4,3987.6,0.12600428]
[1734309328083,11.9378449,3990.0,3987.7,0.7542]
[1734309328240,11.9378449,3990.0,3988.0,2.50752]
[1734309328445,11.9378449,3990.0,3988.2,2.63364383]
[1734309328755,11.9378449,3990.0,3988.3,8.371228]
[1734309328953,11.9378449,3990.0,3989.0,2.50687]
[1734309329155,11.9378449,3990.0,3988.2,0.12625383]
[1734309329156,11.9378449,3990.0,3988.9,2.50692]
[1734309329666,11.9378449,3990.0,3988.2,0.12625383]
[1734309329667,24.7778449,3990.0,3988.6,2.50712]
[1734309330375,24.7778449,3990.0,3988.5,2.50718]
[1734309331126,24.7778449,3990.0,3988.2,0.12323586]
[1734309331127,24.7778449,3990.0,3989.3,2.50667]
[1734309331479,23.9564449,3990.0,3989.8,2.50637]
[1734309331832,22.7033149,3990.0,3989.8,2.50637]
[1734309332030,22.7033149,3990.0,3989.9,3.7324484]
[1734309332031,10.41969159,3990.0,3989.9,3.7324484]
[1734309332355,0.1654235,3990.5,3989.9,3.7324484]
[1734309332356,0.1654235,3990.5,3990.4,2.50601]
[1734309332667,4.5554235,3990.5,3990.4,10.877238]
[1734309333668,0.1654235,3990.5,3990.4,8.371228]
[1734309333874,0.1654235,3990.5,3989.9,0.7752]
[1734309334164,0.1654235,3990.5,3990.1,2.50617]
[1734309334363,0.1654235,3990.5,3989.8,0.12256914]
[1734309334364,0.1654235,3990.5,3989.9,2.50628]
[1734309334592,0.1654235,3990.5,3989.8,0.12256914]
[1734309334931,0.1654235,3990.5,3989.8,2.62889914]
[1734309335568,0.1654235,3990.5,3989.8,0.12256914]
[1734309335765,0.1654235,3990.5,3989.9,2.50632]
[1734309335969,0.1654235,3990.5,3989.8,0.12256914]
[1734309336496,0.1654235,3990.5,3990.4,2.50601]
[1734309336835,0.1654235,3990.5,3989.8,0.12256914]
[1734309337269,0.1654235,3990.5,3990.3,2.50605]
[1734309337640,0.1654235,3990.5,3990.0,8.371228]
[1734309337839,4.5554235,3990.5,3990.0,8.371228]
[1734309338791,4.5554235,3990.5,3990.0,10.877428]
[1734309339176,4.5554235,3990.5,3990.0,8.371228]
[1734309340535,4.5554235,3990.5,3990.3,2.50604]
[1734309342039,4.5554235,3990.5,3990.0,10.877478]
[1734309342287,4.5554235,3990.5,3990.0,8.371228]
[1734309342681,4.5554235,3990.5,3990.3,2.50604]
[1734309342883,4.5554235,3990.5,3990.0,8.371228]
[1734309343118,4.5554235,3990.5,3990.0,10.877468]
[1734309343937,4.5554235,3990.5,3990.3,2.50606]
[1734309344596,4.5554235,3990.5,3990.0,10.877468]
[1734309344797,4.5554235,3990.5,3990.1,2.50618]
[1734309345093,4.5554235,3990.5,3990.4,2.50601]
[1734309345543,4.5554235,3990.5,3990.0,8.371228]
[1734309345832,0.7683,3990.4,3990.0,8.371228]
[1734309346205,0.7683,3990.4,3988.8,0.822]
[1734309346206,0.7683,3990.4,3988.9,8.371228]
[1734309346401,0.7683,3990.4,3989.1,2.50683]
[1734309346624,0.7683,3990.4,3989.0,10.878108]
[1734309346824,2.50611,3990.3,3988.8,0.12484819]
[1734309347026,2.50615,3990.2,3988.8,0.12484819]
[1734309347226,0.7663,3990.1,3989.1,2.50679]
[1734309347439,0.7663,3990.1,3988.8,0.12484819]
[1734309347637,0.7663,3990.1,3988.6,2.50712]
[1734309347638,0.7663,3990.1,3988.3,2.50732]
[1734309347803,0.7663,3990.1,3988.7,2.50705]
[1734309348005,0.7663,3990.1,3988.8,8.371228]
[1734309348241,0.7663,3990.1,3988.5,2.50718]
[1734309348242,4.5554235,3990.5,3988.6,8.371228]
[1734309348538,4.5554235,3990.5,3989.4,2.50661]
[1734309348742,4.5554235,3990.5,3989.4,8.371228]
[1734309348969,4.5554235,3990.5,3989.6,8.371228]
[1734309349165,4.5554235,3990.5,3989.9,2.50632]
[1734309349310,4.5554235,3990.5,3990.1,8.371228]
[1734309349504,1.12639725,3991.4,3990.2,8.371228]
[1734309349710,1.77,3990.5,3990.4,2.50601]
[1734309350011,1.77,3991.3,3990.3,2.50605]
[1734309350230,1.77,3991.3,3989.2,11.011228]
[1734309350231,1.77,3991.3,3989.2,8.371228]
[1734309350408,1.77,3991.3,3990.1,2.50617]
[1734309350748,1.77,3991.3,3989.7,2.50644]
[1734309350967,1.77,3991.3,3990.5,2.50589]
[1734309351111,1.77,3991.3,3989.6,2.50647]
[1734309351307,0.7851,3991.2,3990.4,2.50598]
[1734309351508,0.7851,3991.2,3990.8,2.50573]
[1734309351814,0.7851,3991.2,3989.9,8.371228]
[1734309352024,0.7851,3991.2,3990.0,8.371228]
[1734309352238,0.7851,3991.2,3990.7,2.5058]
[1734309352443,0.7851,3991.2,3990.2,2.50613]
[1734309352619,0.7851,3991.2,3990.8,2.50575]
[1734309352818,0.7851,3991.2,3990.9,2.50565]
[1734309353709,0.7851,3991.2,3990.6,2.50586]
[1734309353912,0.7851,3991.2,3990.7,2.50578]
[1734309354408,0.7851,3991.2,3990.4,2.506]
[1734309355849,0.7851,3991.2,3990.7,2.5058]
[1734309356047,0.7851,3991.2,3990.3,8.371228]
[1734309356365,0.7851,3991.2,3991.0,2.50563]
[1734309356845,1.77,3991.3,3991.2,2.50551]
[1734309357158,1.77,3991.3,3991.2,1.67221]
[1734309357449,1.77,3991.3,3990.0,0.12245209]
[1734309357450,0.0211,3990.4,3986.7,2.50833]
[1734309357653,0.0211,3990.0,3988.7,2.50707]
[1734309357851,0.0211,3990.0,3987.4,0.7729]
[1734309357852,0.0211,3990.0,3988.8,1.86763011]
[1734309358070,0.0211,3990.0,3988.8,1.36876344]
[1734309358369,0.0211,3990.0,3988.1,0.68174244]
[1734309358549,0.0211,3990.0,3989.1,2.50679]
[1734309359433,0.0211,3990.0,3988.4,6.3]
[1734309359434,0.0211,3990.0,3988.8,6.3]
[1734309359749,0.0211,3990.0,3989.6,2.50648]
[1734309359919,0.7746,3991.1,3989.7,0.68174244]
[1734309360115,0.7515,3991.0,3988.4,0.7516]
[1734309360342,1.77,3991.2,3988.4,3.25883]
[1734309360343,0.7515,3991.1,3988.4,3.25883]
[1734309360510,0.7515,3991.1,3988.4,2.50722]
[1734309360883,0.8323,3990.1,3988.5,2.50716]
[1734309361242,0.8323,3990.0,3987.9,0.12551452]
[1734309361446,0.8323,3989.7,3987.9,0.12551452]
[1734309361947,0.8323,3989.7,3989.2,2.50674]
[1734309362161,0.8323,3989.7,3988.9,2.5069]
[1734309362344,0.8323,3989.7,3988.7,2.50707]
[1734309362655,0.8323,3989.7,3987.9,0.12551452]
[1734309362952,0.785,3990.7,3990.4,2.506]
[1734309363153,0.785,3990.7,3990.5,2.50593]
[1734309363351,0.785,3990.7,3989.3,3.52474241]
[1734309363544,0.785,3990.7,3989.4,3.14473534]
[1734309363738,0.785,3990.7,3990.5,2.50592]
[1734309364163,1.77,3991.3,3990.5,2.50592]
[1734309364164,0.7932,3991.2,3990.9,2.50566]
[1734309364581,0.7932,3991.2,3990.3,2.50607]
[1734309364813,0.7932,3991.2,3990.9,2.50568]
[1734309364971,0.7932,3991.2,3991.0,2.50559]
[1734309365480,1.12639725,3991.4,3990.7,2.5058]
[1734309365481,1.12639725,3991.4,3991.2,2.50548]
[1734309365848,1.12639725,3991.4,3990.6,1.01804241]
[1734309366163,1.12639725,3991.4,3990.3,3.52408241]
[1734309366481,1.12639725,3991.4,3990.4,0.8516738]
[1734309366785,1.12639725,3991.4,3990.6,1.01804241]
[1734309366940,1.12639725,3991.4,3991.0,2.5056]
[1734309367354,1.12639725,3991.4,3991.2,2.50548]
[1734309367550,1.12639725,3991.4,3990.8,1.01804241]
[1734309367551,1.12639725,3991.4,3991.0,1.01804241]
[1734309367767,1.12639725,3991.4,3991.1,2.1303763]
[1734309368144,1.12639725,3991.4,3991.2,2.50546]
[1734309368455,0.005,3991.9,3991.7,2.50518]
[1734309368694,0.005,3991.9,3991.8,3.16013433]
[1734309369078,1.775,3991.9,3991.8,2.12966213]
[1734309369277,1.775,3991.9,3991.2,4.54156483]
[1734309369278,2.5363,3991.9,3991.5,1.0304722]
[1734309369477,2.5363,3991.9,3991.6,2.13131461]
[1734309369675,2.5363,3991.9,3991.4,2.50536]
[1734309369986,2.5363,3991.9,3991.5,2.13188422]
[1734309370193,2.5363,3991.9,3991.2,1.0304722]
[1734309370394,1.775,3991.9,3991.3,0.85260444]
[1734309370617,0.51336672,3992.8,3991.7,3.08895944]
[1734309370618,0.005,3992.8,3991.7,3.08895944]
[1734309370815,0.005,3992.8,3991.4,5.38789961]
[1734309370816,0.005,3992.8,3992.6,2.50457]
[1734309370982,0.005,3992.8,3992.7,2.13054062]
[1734309371180,0.005,3992.8,3992.4,3.53504631]
[1734309371414,0.005,3992.8,3992.2,1.03031631]
[1734309371633,0.75404559,3993.5,3992.3,0.85172291]
[1734309371782,0.75404559,3993.5,3992.3,2.12924878]
[1734309372132,0.75404559,3993.5,3992.7,2.50454]
[1734309372452,0.75404559,3993.5,3992.2,1.03031631]
[1734309372651,0.75404559,3993.5,3992.3,3.78158952]
[1734309372857,0.75404559,3993.5,3991.8,2.63279428]
[1734309372858,0.75404559,3993.5,3992.0,1.03031631]
[1734309373073,2.9572484,3993.6,3991.7,1.03031631]
[1734309373278,2.9572484,3993.6,3991.8,2.12897348]
[1734309373580,0.00303928,3993.8,3992.8,2.50445]
[1734309373726,0.00303928,3993.8,3992.9,0.85122336]
[1734309373930,0.00303928,3993.8,3992.8,2.50449]
[1734309374300,1.33590844,3993.7,3992.4,1.03031631]
[1734309374426,1.33590844,3993.7,3992.1,2.06063263]
[1734309374427,0.00303928,3993.8,3992.9,2.50442]
[1734309374783,0.8048,3993.7,3992.3,1.03031631]
[1734309374985,0.8048,3993.5,3992.0,2.50498]
[1734309375475,0.7857,3993.3,3991.7,2.50516]
[1734309375686,0.7857,3993.3,3991.4,1.03031631]
[1734309375828,0.7857,3993.3,3991.5,1.27712479]
[1734309376022,0.7857,3993.2,3991.7,2.50516]
[1734309376238,0.7857,3993.2,3991.3,1.1545588]
[1734309376239,0.7857,3993.2,3991.3,1.03031631]
[1734309376469,0.7857,3993.2,3991.1,1.03031631]
[1734309376738,0.7857,3992.6,3991.2,0.85147705]
[1734309376938,0.7857,3992.5,3990.8,1.03031631]
[1734309377173,0.7857,3992.5,3991.2,2.5055]
[1734309378135,2.5046,3992.7,3990.7,4.17724884]
[1734309378136,0.833,3992.2,3990.7,1.03031631]
[1734309378330,0.833,3992.7,3990.7,3.16094616]
[1734309378557,1.05110251,3993.3,3990.4,2.50596]
[1734309378558,0.8327,3992.2,3990.8,0.85225194]
[1734309378779,0.8327,3992.2,3991.4,2.50536]
[1734309378936,0.8327,3992.2,3990.9,2.13055096]
[1734309378937,0.8327,3992.2,3991.8,2.50511]
[1734309379444,0.8327,3992.2,3991.2,1.03031631]
[1734309379650,1.05110251,3993.3,3991.2,1.03031631]
[1734309379651,0.8327,3993.2,3992.1,2.50489]
[1734309379849,0.8327,3993.2,3991.8,2.50512]
[1734309380148,3.3375,3992.4,3991.1,1.03031631]
[1734309380349,3.3375,3992.4,3990.9,2.50566]
[1734309380350,0.7835,3992.3,3990.9,2.50566]
[1734309380670,0.7835,3992.3,3991.2,2.50549]
[1734309380970,0.7835,3993.2,3992.6,2.50461]
[1734309381195,0.7835,3993.2,3991.7,1.83571631]
[1734309381384,1.05110251,3993.3,3993.0,2.50433]
[1734309381541,1.05110251,3993.3,3992.2,1.03031631]
[1734309381740,1.05110251,3993.3,3992.3,3.53512631]
[1734309382055,1.05110251,3993.3,3992.9,2.50442]
[1734309382375,1.05110251,3993.3,3993.1,2.5043]
[1734309382552,1.05110251,3993.3,3992.7,2.50452]
[1734309382937,1.05110251,3993.3,3992.2,1.03031631]
[1734309383135,1.05110251,3993.3,3992.0,1.54547447]
[1734309383136,1.05110251,3993.3,3992.5,2.50466]
[1734309383352,1.05110251,3993.3,3992.4,2.50473]
[1734309383585,1.05110251,3993.3,3991.8,4.56571263]
[1734309383586,1.05110251,3993.3,3992.0,1.03031631]
[1734309383786,1.05110251,3993.3,3991.8,1.54547447]
[1734309383787,1.05110251,3993.3,3992.7,2.50451]
[1734309383980,1.05110251,3993.3,3992.3,0.12337519]
[1734309384185,1.05110251,3993.3,3991.8,1.03031631]
[1734309384345,1.05110251,3993.3,3991.2,2.72816615]
[1734309384346,0.7541,3993.2,3991.9,0.12357547]
[1734309384750,1.05110251,3993.3,3992.1,2.50494]
[1734309385068,1.05110251,3993.3,3992.8,2.50446]
[1734309385262,1.05110251,3993.3,3992.5,2.50468]
[1734309385449,1.05110251,3993.3,3992.1,1.03031631]
[1734309385649,1.05110251,3993.3,3992.5,2.50467]
[1734309386051,1.05110251,3993.3,3993.1,2.50428]
[1734309386883,1.05110251,3993.3,3992.7,2.50455]
[1734309387063,1.05110251,3993.3,3992.7,2.50454]
[1734309387382,1.05110251,3993.3,3992.5,0.12433905]
[1734309387603,1.05110251,3993.3,3992.1,0.7899]
[1734309387604,0.7966,3993.2,3992.1,1.82021631]
[1734309387806,1.05110251,3993.3,3992.2,2.12455161]
[1734309388020,1.05110251,3993.3,3992.1,1.82021631]
[1734309388021,1.05110251,3993.3,3993.1,2.50426]
[1734309388381,0.7966,3993.7,3993.1,2.50426]
[1734309388732,0.7966,3993.7,3992.8,2.50447]
[1734309389018,0.7966,3993.7,3992.5,0.12576325]
[1734309389184,0.7966,3993.7,3992.0,8.80498]
[1734309389387,0.7966,3993.7,3992.0,6.3]
[1734309389769,0.00303928,3993.8,3992.2,0.8074]
[1734309389971,0.00303928,3993.8,3993.6,2.504]
[1734309390403,0.00303928,3993.8,3993.3,0.8074]
[1734309390404,0.00303928,3993.8,3993.3,2.50416]
[1734309390582,0.00303928,3993.8,3992.5,1.83771631]
[1734309390583,0.00303928,3993.8,3993.0,2.50434]
[1734309390779,0.00303928,3993.8,3992.5,3.31205]
[1734309391194,0.7925,3993.7,3992.9,0.12329829]
[1734309391586,0.7925,3993.7,3992.9,2.62770829]
[1734309391786,0.00303928,3993.8,3993.4,2.50412]
[1734309392005,0.00303928,3993.8,3992.9,0.12329829]
[1734309392006,0.00303928,3993.8,3993.1,2.50431]
[1734309392314,0.00303928,3993.8,3993.6,2.50397]
[1734309392696,0.00303928,3993.8,3992.9,0.12329829]
[1734309392697,0.00303928,3993.8,3993.5,2.50405]
[1734309393038,0.00303928,3993.8,3992.9,0.12329829]
[1734309393175,0.7925,3993.7,3992.9,0.12329829]
[1734309393374,0.00303928,3993.8,3993.3,2.50418]
[1734309393676,0.00303928,3993.8,3992.9,0.12329829]
[1734309393875,0.7925,3993.7,3992.3,2.50479]
[1734309394074,0.7925,3993.7,3992.2,2.50487]
[1734309394347,1.06632859,3993.6,3991.9,0.8074]
[1734309394641,1.06632859,3993.6,3992.4,0.12406093]
[1734309394642,0.7925,3993.2,3992.4,0.12406093]
[1734309395014,0.7925,3993.2,3991.4,0.8074]
[1734309395015,0.7925,3993.2,3992.1,2.50494]
[1734309395219,0.7925,3993.2,3991.6,2.50526]
[1734309395443,1.10354649,3993.1,3991.9,2.50504]
[1734309395753,1.10354649,3993.1,3992.2,2.50483]
[1734309396087,1.10354649,3993.1,3991.8,0.12601287]
[1734309396286,1.10354649,3993.1,3992.0,2.50495]
[1734309396530,1.10354649,3993.1,3991.8,0.12601287]
[1734309396948,1.10354649,3993.1,3992.3,2.50478]
[1734309397091,1.10354649,3993.1,3992.0,2.50496]
[1734309397545,1.10354649,3993.1,3991.4,0.8074]
[1734309397704,1.10354649,3993.1,3991.6,2.50523]
[1734309397916,1.10354649,3993.1,3991.7,0.12612548]
[1734309398537,1.10354649,3993.1,3992.2,2.50484]
[1734309398740,1.10354649,3993.1,3992.7,2.50455]
[1734309398954,1.10354649,3993.1,3992.1,3.33409]
[1734309398955,1.10354649,3993.1,3992.1,0.8292]
[1734309399106,1.10354649,3993.1,3992.9,2.50441]
[1734309401065,1.10354649,3993.1,3991.9,10.35054447]
[1734309401066,1.10354649,3993.1,3992.4,2.50473]
[1734309401414,1.10354649,3993.1,3992.1,2.50492]
[1734309401613,1.10354649,3993.1,3991.7,0.12612548]
[1734309401614,0.8138,3993.0,3991.7,0.12612548]
[1734309401853,2.50446,3992.9,3991.7,0.12612548]
[1734309402071,2.50446,3992.9,3991.4,2.50536]
[1734309402369,0.8324,3992.3,3990.8,2.50574]
[1734309402510,0.8324,3992.3,3990.5,3.53626631]
[1734309402725,0.8324,3992.3,3990.2,0.7778]
[1734309403069,0.8234,3992.1,3990.8,0.12452438]
[1734309403235,0.8234,3992.1,3991.2,2.50547]
[1734309404866,1.0446593,3992.0,3991.2,2.50547]
[1734309405071,1.0446593,3992.0,3990.8,0.12452438]
[1734309405421,0.8234,3992.1,3990.8,0.12452438]
[1734309406274,0.8234,3992.1,3990.2,1.03031631]
[1734309406528,0.7995,3991.4,3989.9,1.03031631]
[1734309406726,3.3049,3991.4,3990.0,0.85308539]
[1734309407010,0.7995,3991.3,3989.5,3.53688631]
[1734309407214,0.7995,3991.3,3989.6,5.66985049]
[1734309407414,3.30496,3991.3,3989.6,3.53680631]
[1734309407625,3.30505,3991.2,3989.7,2.1343801]
[1734309407831,0.7995,3991.2,3989.8,2.13439548]
[1734309408137,1.85320847,3991.2,3989.9,0.85371993]
[1734309408337,0.7995,3991.1,3989.6,1.03031631]
[1734309408547,0.7995,3991.1,3988.7,2.50708]